[Event "Latvijas 2022. gada jauniešu čempionāta fināls"]
[Site "Riga, Latvia"]
[Date "2022.06.13"]
[Round "3.11"]
[White "Pukite, Elza"]
[Black "Skreitule, Undine"]
[Result "1-0"]
[TimeControl "3600+30"]
[WhiteElo "1114"]
[BlackElo "1192"]

1. e4 {[%clk 01:00:59]} e5 {[%clk 01:00:53]} {[%emt 00:00:08]} 2. Nf3 {[%clk
01:01:22]} {[%emt 00:00:06]} Nc6 {[%clk 01:01:10]} {[%emt 00:00:13]} 3. Bb5
{[%clk 01:01:26]} {[%emt 00:00:26]} d6 {[%clk 01:01:13]} {[%emt 00:00:28]} 4.
Nc3 {[%clk 01:01:26]} {[%emt 00:00:30]} Bd7 {[%clk 01:00:57]} {[%emt 00:00:46]}
5. O-O {[%clk 01:01:38]} {[%emt 00:00:18]} Nf6 {[%clk 01:01:13]} {[%emt
00:00:14]} 6. d3 {[%clk 01:01:53]} {[%emt 00:00:16]} h6 {[%clk 01:01:25]}
{[%emt 00:00:17]} 7. h3 {[%clk 01:01:38]} {[%emt 00:00:45]} Be7 {[%clk
01:01:37]} {[%emt 00:00:18]} 8. Be3 {[%clk 01:01:38]} {[%emt 00:00:30]} a6
{[%clk 01:01:32]} {[%emt 00:00:36]} 9. Bc4 {[%clk 01:00:22]} {[%emt 00:01:46]}
O-O {[%clk 01:00:08]} {[%emt 00:01:54]} 10. Qd2 {[%clk 00:58:24]} {[%emt
00:02:28]} b5 {[%clk 00:55:12]} {[%emt 00:05:26]} 11. Bd5 {[%clk 00:56:42]}
{[%emt 00:02:12]} Nh7 {[%clk 00:53:13]} {[%emt 00:02:29]} 12. Ne2 {[%clk
00:55:05]} {[%emt 00:02:07]} Ng5 {[%clk 00:51:59]} {[%emt 00:01:45]} 13. Nxg5
{[%clk 00:53:41]} {[%emt 00:01:53]} Bxg5 {[%clk 00:52:17]} {[%emt 00:00:11]} 14.
Ng3 {[%clk 00:54:00]} {[%emt 00:00:11]} Bxe3 {[%clk 00:50:56]} {[%emt
00:01:51]} 15. fxe3 {[%clk 00:53:43]} {[%emt 00:00:47]} Rb8 {[%clk 00:49:17]}
{[%emt 00:02:09]} 16. Qf2 {[%clk 00:50:56]} {[%emt 00:03:17]} Qe7 {[%clk
00:48:51]} {[%emt 00:00:56]} 17. Nh5 {[%clk 00:49:29]} {[%emt 00:01:56]} Nd8
{[%clk 00:45:46]} {[%emt 00:03:36]} 18. Rad1 {[%clk 00:46:48]} {[%emt
00:03:11]} c6 {[%clk 00:45:39]} {[%emt 00:00:37]} 19. Bb3 {[%clk 00:46:18]}
{[%emt 00:00:59]} Be6 {[%clk 00:45:51]} {[%emt 00:00:18]} 20. Qg3 {[%clk
00:43:54]} {[%emt 00:02:54]} g6 {[%clk 00:44:59]} {[%emt 00:01:23]} 21. Nf6+
{[%clk 00:43:41]} {[%emt 00:00:42]} Kg7 {[%clk 00:44:21]} {[%emt 00:01:07]} 22.
Nh5+ {[%clk 00:42:19]} {[%emt 00:01:53]} Kg8 {[%clk 00:43:49]} {[%emt
00:01:02]} 23. Nf6+ {[%clk 00:40:40]} {[%emt 00:02:09]} Kh8 {[%clk 00:42:34]}
{[%emt 00:01:38]} 24. Qh4 {[%clk 00:40:28]} {[%emt 00:00:49]} h5 {[%clk
00:41:32]} {[%emt 00:01:32]} 25. Qg5 {[%clk 00:40:46]} {[%emt 00:00:11]} Kg7
{[%clk 00:39:43]} {[%emt 00:02:19]} 26. Nxh5+ {[%clk 00:40:47]} {[%emt
00:00:30]} Kh7 {[%clk 00:39:12]} {[%emt 00:01:01]} 27. Qxe7 {[%clk 00:40:58]}
{[%emt 00:00:19]} Kg8 {[%clk 00:38:48]} {[%emt 00:00:54]} 28. Qg5 {[%clk
00:41:01]} {[%emt 00:00:27]} Bxb3 {[%clk 00:38:58]} {[%emt 00:00:20]} 29. Rf6
{[%clk 00:40:48]} {[%emt 00:00:43]} Ne6 {[%clk 00:39:04]} {[%emt 00:00:24]} 30.
Rxg6+ {[%clk 00:39:55]} {[%emt 00:01:23]} fxg6 {[%clk 00:38:25]} {[%emt
00:01:10]} 31. Qxg6+ {[%clk 00:40:13]} {[%emt 00:00:12]} Kh8 {[%clk 00:38:31]}
{[%emt 00:00:19]} 32. axb3 {[%clk 00:40:21]} {[%emt 00:00:26]} Rb7 {[%clk
00:38:13]} {[%emt 00:00:46]} 33. Rf1 {[%clk 00:39:43]} {[%emt 00:01:09]} Rxf1+
{[%clk 00:34:28]} {[%emt 00:04:16]} 34. Kxf1 {[%clk 00:39:45]} {[%emt
00:00:27]} Ng7 {[%clk 00:30:15]} {[%emt 00:04:44]} 35. Nxg7 {[%clk 00:39:35]}
{[%emt 00:00:40]} Rxg7 {[%clk 00:29:59]} {[%emt 00:00:43]} 36. Qxd6 {[%clk
00:40:00]} {[%emt 00:00:08]} a5 {[%clk 00:28:45]} {[%emt 00:01:44]} 37. Qxc6
{[%clk 00:40:13]} {[%emt 00:00:17]} a4 {[%clk 00:29:03]} {[%emt 00:00:12]} 38.
Qxb5 {[%clk 00:40:13]} {[%emt 00:00:29]} a3 {[%clk 00:29:21]} {[%emt 00:00:13]}
39. bxa3 {[%clk 00:40:38]} {[%emt 00:00:05]} Rf7+ {[%clk 00:29:39]} {[%emt
00:00:11]} 40. Ke2 {[%clk 00:41:01]} {[%emt 00:00:07]} Rg7 {[%clk 00:28:57]}
{[%emt 00:01:12]} 41. Qxe5 {[%clk 00:41:20]} {[%emt 00:00:12]} Kg8 {[%clk
00:28:57]} {[%emt 00:00:29]} 42. Qxg7+ {[%clk 00:41:40]} {[%emt 00:00:10]} Kxg7
{[%clk 00:29:05]} {[%emt 00:00:23]} 43. a4 {[%clk 00:42:04]} {[%emt 00:00:06]}
Kf7 {[%clk 00:29:16]} {[%emt 00:00:19]} 44. a5 {[%clk 00:42:24]} {[%emt
00:00:10]} Ke6 {[%clk 00:28:44]} {[%emt 00:01:02]} 45. a6 {[%clk 00:42:44]}
{[%emt 00:00:10]} Kd6 {[%clk 00:28:37]} {[%emt 00:00:37]} 46. a7 {[%clk
00:43:05]} {[%emt 00:00:09]} Kc7 {[%clk 00:28:41]} {[%emt 00:00:15]} 47. a8=Q
{[%clk 00:43:20]} {[%emt 00:00:25]} Kd7 {[%clk 00:28:56]} {[%emt 00:00:16]} 48.
Qa6 {[%clk 00:43:43]} {[%emt 00:00:06]} Kc7 {[%clk 00:28:35]} {[%emt 00:00:52]}
49. Kf3 {[%clk 00:44:07]} {[%emt 00:00:05]} Kd7 {[%clk 00:28:40]} {[%emt
00:00:25]} 50. Kf4 {[%clk 00:44:30]} {[%emt 00:00:08]} Kc7 {[%clk 00:28:34]}
{[%emt 00:00:35]} 51. Ke5 {[%clk 00:44:56]} {[%emt 00:00:05]} Kd7 {[%clk
00:28:51]} {[%emt 00:00:13]} 52. Qd6+ {[%clk 00:45:15]} {[%emt 00:00:11]} Ke8
{[%clk 00:28:54]} {[%emt 00:00:26]} 53. Qc7 {[%clk 00:45:41]} {[%emt 00:00:05]}
Kf8 {[%clk 00:28:35]} {[%emt 00:00:46]} 54. Kf6 {[%clk 00:46:06]} {[%emt
00:00:08]} Ke8 {[%clk 00:27:57]} {[%emt 00:01:07]} 55. Qe7# {[%clk 00:46:26]}
{[%emt 00:00:10]} 1-0

[Event "Latvijas 2022. gada jauniešu čempionāta fināls"]
[Site "Riga, Latvia"]
[Date "2022.06.13"]
[Round "3.12"]
[White "Tolmaceva, Alona"]
[Black "Gailevska, Milana"]
[Result "0-1"]
[TimeControl "3600+30"]
[WhiteElo "1102"]
[BlackElo "1048"]

1. e4 {[%clk 01:00:59]} e6 {[%clk 01:00:59]} {[%emt 00:00:02]} 2. d4 {[%clk
01:01:21]} {[%emt 00:00:08]} d5 {[%clk 01:01:20]} {[%emt 00:00:08]} 3. Nc3
{[%clk 01:01:46]} {[%emt 00:00:05]} dxe4 {[%clk 01:01:41]} {[%emt 00:00:09]} 4.
Nxe4 {[%clk 01:02:05]} {[%emt 00:00:10]} Nd7 {[%clk 01:02:07]} {[%emt
00:00:05]} 5. Nf3 {[%clk 01:01:39]} {[%emt 00:00:56]} Ngf6 {[%clk 01:02:32]}
{[%emt 00:00:06]} 6. Nxf6+ {[%clk 01:01:06]} {[%emt 00:01:02]} Nxf6 {[%clk
01:02:51]} {[%emt 00:00:11]} 7. Be2 {[%clk 00:59:20]} {[%emt 00:02:16]} c5
{[%clk 01:03:02]} {[%emt 00:00:20]} 8. O-O {[%clk 00:59:31]} {[%emt 00:00:18]}
cxd4 {[%clk 01:03:15]} {[%emt 00:00:17]} 9. Nxd4 {[%clk 00:59:21]} {[%emt
00:00:40]} Bc5 {[%clk 01:02:48]} {[%emt 00:00:57]} 10. Nb5 {[%clk 00:50:51]}
{[%emt 00:09:01]} Qxd1 {[%clk 01:02:49]} {[%emt 00:00:29]} 11. Rxd1 {[%clk
00:50:52]} {[%emt 00:00:29]} Bb6 {[%clk 01:01:35]} {[%emt 00:01:41]} 12. Bd2
{[%clk 00:44:47]} {[%emt 00:06:36]} O-O {[%clk 00:58:39]} {[%emt 00:03:26]} 13.
Bf3 {[%clk 00:40:00]} {[%emt 00:05:16]} Bd7 {[%clk 00:46:58]} {[%emt 00:12:13]}
14. Nd6 {[%clk 00:35:44]} {[%emt 00:04:45]} Bc6 {[%clk 00:46:50]} {[%emt
00:00:39]} 15. Nxb7 {[%clk 00:29:54]} {[%emt 00:06:20]} Bxf3 {[%clk 00:47:00]}
{[%emt 00:00:21]} 16. gxf3 {[%clk 00:30:17]} {[%emt 00:00:07]} Rab8 {[%clk
00:46:37]} {[%emt 00:00:53]} 17. Nd6 {[%clk 00:30:26]} {[%emt 00:00:21]} Rfd8
{[%clk 00:46:07]} {[%emt 00:00:58]} 18. Ne4 {[%clk 00:26:21]} {[%emt 00:04:37]}
Nd5 {[%clk 00:43:46]} {[%emt 00:02:51]} 19. Nc3 {[%clk 00:23:07]} {[%emt
00:03:45]} Ne7 {[%clk 00:43:03]} {[%emt 00:01:13]} 20. Bg5 {[%clk 00:21:51]}
{[%emt 00:01:45]} f6 {[%clk 00:43:14]} {[%emt 00:00:20]} 21. Be3 {[%clk
00:21:17]} {[%emt 00:01:03]} Bxe3 {[%clk 00:42:58]} {[%emt 00:00:47]} 22. Rxd8+
{[%clk 00:21:26]} {[%emt 00:00:21]} Rxd8 {[%clk 00:43:10]} {[%emt 00:00:18]} 23.
fxe3 {[%clk 00:21:52]} {[%emt 00:00:04]} Rd2 {[%clk 00:43:25]} {[%emt
00:00:15]} 24. Rc1 {[%clk 00:21:35]} {[%emt 00:00:46]} Nf5 {[%clk 00:42:06]}
{[%emt 00:01:50]} 25. e4 {[%clk 00:21:37]} {[%emt 00:00:28]} Nh4 {[%clk
00:41:16]} {[%emt 00:01:20]} 26. Rd1 {[%clk 00:07:39]} {[%emt 00:14:28]} Nxf3+
{[%clk 00:40:59]} {[%emt 00:00:47]} 27. Kf1 {[%clk 00:07:46]} {[%emt 00:00:24]}
Rxc2 {[%clk 00:40:08]} {[%emt 00:01:21]} 28. Rd8+ {[%clk 00:07:49]} {[%emt
00:00:26]} Kf7 {[%clk 00:40:18]} {[%emt 00:00:18]} 29. Rd7+ {[%clk 00:08:12]}
{[%emt 00:00:08]} Kg6 {[%clk 00:40:27]} {[%emt 00:00:20]} 30. Rxa7 {[%clk
00:08:24]} {[%emt 00:00:19]} Rxb2 {[%clk 00:40:38]} {[%emt 00:00:19]} 31. a4
{[%clk 00:08:40]} {[%emt 00:00:14]} Nxh2+ {[%clk 00:40:24]} {[%emt 00:00:45]}
32. Ke1 {[%clk 00:08:10]} {[%emt 00:01:01]} h5 {[%clk 00:39:11]} {[%emt
00:01:42]} 33. a5 {[%clk 00:08:18]} {[%emt 00:00:22]} h4 {[%clk 00:38:39]}
{[%emt 00:01:02]} 34. a6 {[%clk 00:07:51]} {[%emt 00:00:57]} Rb6 {[%clk
00:36:51]} {[%emt 00:02:07]} 35. Ra8 {[%clk 00:08:08]} {[%emt 00:00:24]} h3
{[%clk 00:35:09]} {[%emt 00:02:12]} 36. a7 {[%clk 00:08:13]} {[%emt 00:00:26]}
Ra6 {[%clk 00:34:37]} {[%emt 00:00:58]} 37. Nb5 {[%clk 00:07:42]} {[%emt
00:01:04]} Nf3+ {[%clk 00:34:49]} {[%emt 00:00:17]} 38. Kf2 {[%clk 00:07:50]}
{[%emt 00:00:20]} h2 {[%clk 00:34:37]} {[%emt 00:00:46]} 39. Rh8 {[%clk
00:08:12]} {[%emt 00:00:08]} Ne5 {[%clk 00:33:08]} {[%emt 00:01:59]} 40. Rxh2
{[%clk 00:07:57]} {[%emt 00:00:45]} Ng4+ {[%clk 00:33:21]} {[%emt 00:00:15]}
0-1

[Event "Latvijas 2022. gada jauniešu čempionāta fināls"]
[Site "Riga, Latvia"]
[Date "2022.06.13"]
[Round "3.17"]
[White "Krakops, Martijs"]
[Black "Steiners, Emils"]
[Result "0-1"]
[TimeControl "3600+30"]
[WhiteElo "1253"]
[BlackElo "1601"]

1. d4 {[%clk 01:00:57]} {[%emt 00:00:02]} d5 {[%clk 01:00:55]} {[%emt
00:00:05]} 2. Nf3 {[%clk 01:00:45]} {[%emt 00:00:42]} Nf6 {[%clk 01:01:18]}
{[%emt 00:00:07]} 3. Bf4 {[%clk 01:01:05]} {[%emt 00:00:10]} c5 {[%clk
01:00:34]} {[%emt 00:01:14]} 4. c3 {[%clk 01:00:43]} {[%emt 00:00:53]} Nc6
{[%clk 01:00:43]} {[%emt 00:00:21]} 5. Nbd2 {[%clk 01:00:40]} {[%emt 00:00:33]}
e6 {[%clk 00:56:53]} {[%emt 00:04:21]} 6. e3 {[%clk 01:00:27]} {[%emt
00:00:43]} Qb6 {[%clk 00:56:03]} {[%emt 00:01:20]} 7. Qb3 {[%clk 01:00:44]}
{[%emt 00:00:11]} c4 {[%clk 00:56:19]} {[%emt 00:00:17]} 8. Qxb6 {[%clk
01:00:28]} {[%emt 00:00:46]} axb6 {[%clk 00:56:28]} {[%emt 00:00:20]} 9. Be2
{[%clk 00:59:43]} {[%emt 00:01:15]} Be7 {[%clk 00:54:58]} {[%emt 00:02:00]} 10.
Ne5 {[%clk 00:59:34]} {[%emt 00:00:38]} Nxe5 {[%clk 00:54:05]} {[%emt
00:01:24]} 11. Bxe5 {[%clk 00:59:49]} {[%emt 00:00:15]} b5 {[%clk 00:54:11]}
{[%emt 00:00:24]} 12. g4 {[%clk 00:58:31]} {[%emt 00:01:48]} O-O {[%clk
00:52:58]} {[%emt 00:01:43]} 13. h4 {[%clk 00:55:51]} {[%emt 00:03:11]} Bd7
{[%clk 00:48:08]} {[%emt 00:05:21]} 14. g5 {[%clk 00:55:58]} {[%emt 00:00:22]}
Ne8 {[%clk 00:47:58]} {[%emt 00:00:39]} 15. Bg3 {[%clk 00:55:37]} {[%emt
00:00:50]} Nd6 {[%clk 00:47:33]} {[%emt 00:00:55]} 16. Bxd6 {[%clk 00:55:47]}
{[%emt 00:00:21]} Bxd6 {[%clk 00:47:55]} {[%emt 00:00:08]} 17. e4 {[%clk
00:55:50]} {[%emt 00:00:27]} b4 {[%clk 00:44:47]} {[%emt 00:03:39]} 18. e5
{[%clk 00:56:02]} {[%emt 00:00:17]} Be7 {[%clk 00:45:10]} {[%emt 00:00:07]} 19.
Nb1 {[%clk 00:55:19]} {[%emt 00:01:13]} b5 {[%clk 00:43:39]} {[%emt 00:02:01]}
20. Kd2 {[%clk 00:54:53]} {[%emt 00:00:55]} b3 {[%clk 00:40:32]} {[%emt
00:03:37]} 21. a3 {[%clk 00:54:51]} {[%emt 00:00:33]} Ra7 {[%clk 00:39:58]}
{[%emt 00:01:04]} 22. Ke3 {[%clk 00:54:27]} {[%emt 00:00:53]} Rfa8 {[%clk
00:40:05]} {[%emt 00:00:24]} 23. Kd2 {[%clk 00:49:19]} {[%emt 00:05:38]} Kf8
{[%clk 00:39:09]} {[%emt 00:01:25]} 24. f4 {[%clk 00:49:30]} {[%emt 00:00:19]}
f6 {[%clk 00:29:21]} {[%emt 00:10:18]} 25. Rf1 {[%clk 00:49:32]} {[%emt
00:00:28]} fxg5 {[%clk 00:28:13]} {[%emt 00:01:37]} 26. fxg5+ {[%clk 00:49:51]}
{[%emt 00:00:12]} Kg8 {[%clk 00:28:27]} {[%emt 00:00:16]} 27. Rf4 {[%clk
00:49:38]} {[%emt 00:00:42]} Rf8 {[%clk 00:26:30]} {[%emt 00:02:27]} 28. Ke3
{[%clk 00:49:38]} {[%emt 00:00:30]} Rxf4 {[%clk 00:26:15]} {[%emt 00:00:45]} 29.
Kxf4 {[%clk 00:50:03]} {[%emt 00:00:06]} b4 {[%clk 00:26:06]} {[%emt 00:00:39]}
30. cxb4 {[%clk 00:50:18]} {[%emt 00:00:15]} Bxb4 {[%clk 00:26:11]} {[%emt
00:00:26]} 31. Ke3 {[%clk 00:46:09]} {[%emt 00:04:38]} h6 {[%clk 00:23:53]}
{[%emt 00:02:48]} 32. g6 {[%clk 00:46:10]} {[%emt 00:00:29]} Be7 {[%clk
00:23:52]} {[%emt 00:00:30]} 33. h5 {[%clk 00:46:22]} {[%emt 00:00:18]} Bg5+
{[%clk 00:24:17]} {[%emt 00:00:05]} 34. Kf2 {[%clk 00:45:51]} {[%emt 00:01:00]}
Bc1 {[%clk 00:24:25]} {[%emt 00:00:23]} 35. Nd2 {[%clk 00:45:54]} {[%emt
00:00:27]} Bxd2 {[%clk 00:24:39]} {[%emt 00:00:16]} 36. Rd1 {[%clk 00:46:09]}
{[%emt 00:00:15]} c3 {[%clk 00:24:12]} {[%emt 00:00:57]} 37. Rxd2 {[%clk
00:46:30]} {[%emt 00:00:09]} 0-1

[Event "Latvijas 2022. gada jauniešu čempionāta fināls"]
[Site "Riga, Latvia"]
[Date "2022.06.13"]
[Round "3.18"]
[White "Derbenev, Arseniy"]
[Black "Jeronovics, Toms"]
[Result "1/2-1/2"]
[TimeControl "3600+30"]
[WhiteElo "1477"]
[BlackElo "1273"]

1. e4 {[%clk 01:00:59]} e5 {[%clk 01:00:53]} {[%emt 00:00:07]} 2. Nf3 {[%clk
01:01:23]} {[%emt 00:00:06]} Nc6 {[%clk 01:01:12]} {[%emt 00:00:11]} 3. Bc4
{[%clk 01:01:42]} {[%emt 00:00:11]} Bc5 {[%clk 01:01:26]} {[%emt 00:00:16]} 4.
d3 {[%clk 01:01:55]} {[%emt 00:00:17]} Nf6 {[%clk 01:01:31]} {[%emt 00:00:24]}
5. Nc3 {[%clk 01:02:19]} {[%emt 00:00:06]} d6 {[%clk 01:01:20]} {[%emt
00:00:42]} 6. Bg5 {[%clk 01:02:44]} {[%emt 00:00:05]} h6 {[%clk 01:01:17]}
{[%emt 00:00:32]} 7. Bxf6 {[%clk 01:03:09]} {[%emt 00:00:06]} Qxf6 {[%clk
01:01:36]} {[%emt 00:00:10]} 8. Nd5 {[%clk 01:03:34]} {[%emt 00:00:06]} Qd8
{[%clk 01:01:49]} {[%emt 00:00:16]} 9. c3 {[%clk 01:02:57]} {[%emt 00:01:07]}
Bg4 {[%clk 01:01:48]} {[%emt 00:00:30]} 10. O-O {[%clk 01:02:57]} {[%emt
00:00:33]} Ne7 {[%clk 00:57:39]} {[%emt 00:04:38]} 11. b4 {[%clk 01:02:49]}
{[%emt 00:00:38]} Bb6 {[%clk 00:56:39]} {[%emt 00:01:30]} 12. Nxb6 {[%clk
01:02:42]} {[%emt 00:00:37]} axb6 {[%clk 00:57:03]} {[%emt 00:00:06]} 13. d4
{[%clk 01:02:39]} {[%emt 00:00:31]} Ng6 {[%clk 00:54:45]} {[%emt 00:02:48]} 14.
h3 {[%clk 01:02:19]} {[%emt 00:00:50]} Bxf3 {[%clk 00:53:35]} {[%emt 00:01:41]}
15. Qxf3 {[%clk 01:02:42]} {[%emt 00:00:07]} Nf4 {[%clk 00:53:51]} {[%emt
00:00:14]} 16. Kh2 {[%clk 01:01:50]} {[%emt 00:01:17]} Qh4 {[%clk 00:52:40]}
{[%emt 00:01:44]} 17. Qg3 {[%clk 01:01:33]} {[%emt 00:00:39]} Qxg3+ {[%clk
00:51:23]} {[%emt 00:01:56]} 18. fxg3 {[%clk 01:01:47]} {[%emt 00:00:16]} Ne6
{[%clk 00:51:45]} {[%emt 00:00:08]} 19. dxe5 {[%clk 01:01:20]} {[%emt
00:00:57]} dxe5 {[%clk 00:50:56]} {[%emt 00:01:19]} 20. Rf5 {[%clk 01:01:07]}
{[%emt 00:00:42]} Ke7 {[%clk 00:49:52]} {[%emt 00:01:34]} 21. Rxe5 {[%clk
01:00:02]} {[%emt 00:01:36]} c6 {[%clk 00:49:34]} {[%emt 00:00:48]} 22. Rf5
{[%clk 00:59:31]} {[%emt 00:01:02]} Rhd8 {[%clk 00:48:31]} {[%emt 00:01:31]} 23.
Raf1 {[%clk 00:59:31]} {[%emt 00:00:32]} f6 {[%clk 00:48:46]} {[%emt 00:00:15]}
24. e5 {[%clk 00:59:39]} {[%emt 00:00:22]} b5 {[%clk 00:45:20]} {[%emt
00:03:56]} 25. exf6+ {[%clk 00:58:17]} {[%emt 00:01:52]} gxf6 {[%clk 00:45:09]}
{[%emt 00:00:41]} 26. Bb3 {[%clk 00:55:55]} {[%emt 00:02:52]} Nc7 {[%clk
00:43:12]} {[%emt 00:02:25]} 27. Rxf6 {[%clk 00:55:35]} {[%emt 00:00:52]} Nd5
{[%clk 00:43:19]} {[%emt 00:00:23]} 28. Bxd5 {[%clk 00:55:03]} {[%emt
00:01:03]} Rxd5 {[%clk 00:43:35]} {[%emt 00:00:14]} 29. Rf7+ {[%clk 00:55:15]}
{[%emt 00:00:18]} Ke6 {[%clk 00:43:10]} {[%emt 00:00:54]} 30. R1f6+ {[%clk
00:53:41]} {[%emt 00:02:05]} Ke5 {[%clk 00:43:31]} {[%emt 00:00:09]} 31. Rf5+
{[%clk 00:53:39]} {[%emt 00:00:31]} Ke4 {[%clk 00:43:42]} {[%emt 00:00:18]} 32.
Rxd5 {[%clk 00:53:33]} {[%emt 00:00:39]} Kxd5 {[%clk 00:43:42]} {[%emt
00:00:30]} 33. Rf2 {[%clk 00:52:55]} {[%emt 00:01:07]} Kc4 {[%clk 00:43:50]}
{[%emt 00:00:21]} 34. Rc2 {[%clk 00:52:52]} {[%emt 00:00:32]} Ra3 {[%clk
00:44:10]} {[%emt 00:00:11]} 35. g4 {[%clk 00:52:23]} {[%emt 00:01:00]} Rxc3
{[%clk 00:44:30]} {[%emt 00:00:10]} 36. Rxc3+ {[%clk 00:50:09]} {[%emt
00:02:45]} Kxc3 {[%clk 00:44:45]} {[%emt 00:00:15]} 37. a3 {[%clk 00:50:33]}
{[%emt 00:00:06]} Kd4 {[%clk 00:43:37]} {[%emt 00:01:37]} 38. Kg3 {[%clk
00:50:27]} {[%emt 00:00:36]} b6 {[%clk 00:43:37]} {[%emt 00:00:31]} 39. h4
{[%clk 00:50:15]} {[%emt 00:00:42]} Ke4 {[%clk 00:39:29]} {[%emt 00:04:36]} 40.
Kf2 {[%clk 00:49:43]} {[%emt 00:01:03]} Kf4 {[%clk 00:39:22]} {[%emt 00:00:36]}
41. g5 {[%clk 00:49:59]} {[%emt 00:00:14]} hxg5 {[%clk 00:38:52]} {[%emt
00:00:59]} 42. h5 {[%clk 00:50:17]} {[%emt 00:00:13]} Kf5 {[%clk 00:39:07]}
{[%emt 00:00:14]} 43. g4+ {[%clk 00:50:34]} {[%emt 00:00:13]} Kf6 {[%clk
00:39:30]} {[%emt 00:00:08]} 44. Ke3 {[%clk 00:50:45]} {[%emt 00:00:19]} c5
{[%clk 00:39:51]} {[%emt 00:00:10]} 45. bxc5 {[%clk 00:50:58]} {[%emt
00:00:17]} bxc5 {[%clk 00:40:13]} {[%emt 00:00:08]} 46. Ke4 {[%clk 00:51:07]}
{[%emt 00:00:21]} Ke6 {[%clk 00:39:40]} {[%emt 00:01:02]} 47. Kd3 {[%clk
00:51:07]} {[%emt 00:00:31]} Kf6 {[%clk 00:22:11]} {[%emt 00:17:59]} 48. Kc3
{[%clk 00:51:26]} {[%emt 00:00:12]} Ke6 {[%clk 00:21:18]} {[%emt 00:01:11]} 49.
Kb3 {[%clk 00:51:51]} {[%emt 00:00:17]} Ke5 {[%clk 00:21:31]} {[%emt 00:00:15]}
50. a4 {[%clk 00:51:57]} {[%emt 00:00:26]} bxa4+ {[%clk 00:19:52]} {[%emt
00:02:09]} 51. Kxa4 {[%clk 00:52:22]} {[%emt 00:00:05]} c4 {[%clk 00:20:07]}
{[%emt 00:00:15]} 52. h6 {[%clk 00:52:37]} {[%emt 00:00:15]} Kf6 {[%clk
00:20:10]} {[%emt 00:00:26]} 53. Kb4 {[%clk 00:52:02]} {[%emt 00:01:06]} Kg6
{[%clk 00:20:30]} {[%emt 00:00:08]} 54. Kxc4 {[%clk 00:51:56]} {[%emt
00:00:37]} Kxh6 {[%clk 00:20:56]} {[%emt 00:00:05]} 55. Kd5 {[%clk 00:52:05]}
{[%emt 00:00:22]} Kg7 {[%clk 00:19:58]} {[%emt 00:01:27]} 56. Ke5 {[%clk
00:52:24]} {[%emt 00:00:12]} Kg6 {[%clk 00:20:04]} {[%emt 00:00:24]} 57. Ke6
{[%clk 00:52:39]} {[%emt 00:00:15]} Kh6 {[%clk 00:20:12]} {[%emt 00:00:22]} 58.
Kf6 {[%clk 00:52:50]} {[%emt 00:00:18]} Kh7 {[%clk 00:20:31]} {[%emt 00:00:11]}
59. Kf5 {[%clk 00:53:05]} {[%emt 00:00:16]} Kh6 {[%clk 00:20:45]} {[%emt
00:00:14]} 60. Kf6 {[%clk 00:53:22]} {[%emt 00:00:12]} Kh7 {[%clk 00:21:05]}
{[%emt 00:00:11]} 61. Kxg5 {[%clk 00:53:37]} {[%emt 00:00:16]} Kg7 {[%clk
00:20:49]} {[%emt 00:00:45]} 62. Kf5 {[%clk 00:53:14]} {[%emt 00:00:54]} Kf7
{[%clk 00:21:07]} {[%emt 00:00:13]} 63. g5 {[%clk 00:52:58]} {[%emt 00:00:47]}
Kg7 {[%clk 00:21:16]} {[%emt 00:00:19]} 64. g6 {[%clk 00:53:20]} {[%emt
00:00:09]} Kg8 {[%clk 00:21:26]} {[%emt 00:00:20]} 65. Kf4 {[%clk 00:52:54]}
{[%emt 00:00:56]} Kf8 {[%clk 00:20:52]} {[%emt 00:00:56]} 66. Kf5 {[%clk
00:53:17]} {[%emt 00:00:15]} Kg8 {[%clk 00:21:11]} {[%emt 00:00:10]} 67. Kg4
{[%clk 00:53:43]} {[%emt 00:00:05]} Kg7 {[%clk 00:19:41]} {[%emt 00:01:59]} 68.
Kg5 {[%clk 00:54:04]} {[%emt 00:00:10]} Kg8 {[%clk 00:19:51]} {[%emt 00:00:18]}
69. Kh6 {[%clk 00:54:31]} {[%emt 00:00:05]} Kh8 {[%clk 00:20:02]} {[%emt
00:00:18]} 70. Kg5 {[%clk 00:54:48]} {[%emt 00:00:14]} Kg8 {[%clk 00:20:08]}
{[%emt 00:00:22]} 71. Kf4 {[%clk 00:55:12]} {[%emt 00:00:07]} Kg7 {[%clk
00:20:11]} {[%emt 00:00:27]} 72. Kg5 {[%clk 00:55:41]} {[%emt 00:00:01]} Kg8
{[%clk 00:19:50]} {[%emt 00:00:51]} 1/2-1/2